{"text_format":"3","workbook":"xlsx","n_sheets":3,"sheets":["Inizio","Portfolio","Distribuzione fondi"],"not_rendered":{"charts":1,"images":6,"defined_names":1},"read":"whole","date_system":"1900"}

{"sheet":"Inizio","index":0,"n_rows":29,"n_cols":2,"rows_kept":29}
["Gestione degli investimenti","Gestione degli investimenti"]
[]
["Il modello di Gestione degli investimenti consente di seguire l’andamento degli investimenti e la distribuzione dei fondi. I dati sulle azioni di Excel mantengono aggiornato il portfolio con i prezzi correnti e il dettaglio dei fondi. Sono disponibili due fogli di lavoro, Portfolio e Distribuzione fondi, descritti di seguito. Nota: I dati sulle azioni di Excel sono una funzionalità dell’abbonamento a Office 365. "]
[]
["Portfolio","Portfolio"]
["Aggiungere gli investimenti, digitare i simboli azionari, i nomi delle società o dei fondi nei campi di esempio o aggiungere delle righe aggiuntive. Selezionare una categoria di attività e immettere il numero di azioni."]
["Fare clic sul pulsante Aggiungi colonnaper aggiungere ulteriori colonne come Simboli azionari o Valuta."]
{"$rows_empty":13}
["Per aggiornare i dati, fare clic su un qualsiasi titolo azionario. Nella scheda Dati, nel gruppo Query e Connessioni, fare clic su Aggiorna tutti o premere CTRL+ALT+F5."]
[]
[]
[]
[]
["Distribuzione fondi","Distribuzione fondi"]
[]
["Cambiare Categoria e Obiettivo per personalizzare con gli obiettivi del portfolio."]
["Quando una categoria di fondi supera la Soglia, gli importi verranno evidenziati in giallo."]

{"sheet":"Portfolio","index":1,"n_rows":12,"n_cols":9,"rows_kept":12}
["Gestione degli investimenti","Gestione degli investimenti"]
[]
["Portfolio","Portfolio"]
[]
["Esiste una tabella con le azioni esistenti nelle celle B5:I11 e una riga totale nella riga 12. Immettere il nome di una società nelle celle B5:B11, quindi passare a Dati > Aggiorna o premere CTRL+ALT+F5.","Società","Categoria","Quote","Prezzo","Cambio","Cambio (%)","Portfolio %","Valore"]
["Aggiungere gli investimenti, digitare i simboli azionari, i nomi delle società o dei fondi nei campi di esempio o aggiungere delle righe aggiuntive.  Selezionare una categoria di attività e immettere il numero di azioni.",{"$error":"#VALUE!"},"Azioni USA",{"v":1200,"d":"1,200"},{"$f":"_FV(TabellaPortfolio[[#This Row],[Società]],\"Price\")","v":{"v":105.21,"d":"€ 105.21"}},{"$f":"_FV(TabellaPortfolio[[#This Row],[Società]],\"Change\")","v":{"v":-0.24,"d":"-€ 0.24"}},{"$f":"_FV(TabellaPortfolio[[#This Row],[Società]],\"Change (%)\",TRUE)","v":{"v":-0.002276,"d":"-0.23%"}},{"$f":"IFERROR(I6/SUBTOTAL(109,TabellaPortfolio[Valore]),\"\")","v":{"v":0.5974736139719061,"d":"60%"}},{"$f":"D6 * E6","v":{"v":126251.99999999999,"d":"€ 126,252.00"}}]
["Fare clic sul pulsante Aggiungi colonna per aggiungere colonne come Simboli azionari o Valuta.",{"$error":"#VALUE!"},"Obbligazioni",{"v":1300,"d":"1,300"},{"$f":"_FV(TabellaPortfolio[[#This Row],[Società]],\"Price\")","v":{"v":10.46,"d":"€ 10.46"}},{"$f":"_FV(TabellaPortfolio[[#This Row],[Società]],\"Change\")","v":{"v":0.0122760756111569,"d":"€ 0.01"}},{"$f":"_FV(TabellaPortfolio[[#This Row],[Società]],\"Change (%)\",TRUE)","v":{"v":1.1749999999999998E-3,"d":"0.12%"}},{"$f":"IFERROR(I7/SUBTOTAL(109,TabellaPortfolio[Valore]),\"\")","v":{"v":0.06435102970875695,"d":"6%"}},{"v":13598.000000000002,"d":"€ 13,598.00"}]
["Per aggiornare i dati, fare clic su un qualsiasi titolo azionario. Nel scheda Dati, nel gruppo Query & Connessioni fare clic su Aggiorna tutto o premere CTRL+ALT+F5.",{"$error":"#VALUE!"},"Azioni internazionali",{"v":1200,"d":"1,200"},{"$f":"_FV(TabellaPortfolio[[#This Row],[Società]],\"Price\")","v":{"v":29.29,"d":"€ 29.29"}},{"$f":"_FV(TabellaPortfolio[[#This Row],[Società]],\"Change\")","v":{"v":0.0699994333574489,"d":"€ 0.07"}},{"$f":"_FV(TabellaPortfolio[[#This Row],[Società]],\"Change (%)\",TRUE)","v":{"v":0.0023956,"d":"0.24%"}},{"$f":"IFERROR(I8/SUBTOTAL(109,TabellaPortfolio[Valore]),\"\")","v":{"v":0.16633401913541615,"d":"17%"}},{"v":35148,"d":"€ 35,148.00"}]
[null,{"$error":"#VALUE!"},"Contanti",{"v":10000,"d":"10,000"},{"$f":"_FV(TabellaPortfolio[[#This Row],[Società]],\"Price\")","v":{"v":1,"d":"€ 1.00"}},{"$f":"_FV(TabellaPortfolio[[#This Row],[Società]],\"Change\")","v":0},{"$f":"_FV(TabellaPortfolio[[#This Row],[Società]],\"Change (%)\",TRUE)","v":{"v":0,"d":"0.00%"}},{"$f":"IFERROR(I9/SUBTOTAL(109,TabellaPortfolio[Valore]),\"\")","v":{"v":0.0473238930054103,"d":"5%"}},{"v":10000,"d":"€ 10,000.00"}]
[null,{"$error":"#VALUE!"},"Beni immobili",125,{"$f":"_FV(TabellaPortfolio[[#This Row],[Società]],\"Price\")","v":{"v":116.63,"d":"€ 116.63"}},{"$f":"_FV(TabellaPortfolio[[#This Row],[Società]],\"Change\")","v":{"v":-0.249994620493774,"d":"-€ 0.25"}},{"$f":"_FV(TabellaPortfolio[[#This Row],[Società]],\"Change (%)\",TRUE)","v":{"v":-2.1389E-3,"d":"-0.21%"}},{"$f":"IFERROR(I10/SUBTOTAL(109,TabellaPortfolio[Valore]),\"\")","v":{"v":0.06899232051526255,"d":"7%"}},{"v":14578.75,"d":"€ 14,578.75"}]
[null,{"$error":"#VALUE!"},"Merci",100,{"$f":"_FV(TabellaPortfolio[[#This Row],[Società]],\"Price\")","v":{"v":117.33,"d":"€ 117.33"}},{"$f":"_FV(TabellaPortfolio[[#This Row],[Società]],\"Change\")","v":{"v":-0.27,"d":"-€ 0.27"}},{"$f":"_FV(TabellaPortfolio[[#This Row],[Società]],\"Change (%)\",TRUE)","v":{"v":-0.002296,"d":"-0.23%"}},{"$f":"IFERROR(I11/SUBTOTAL(109,TabellaPortfolio[Valore]),\"\")","v":{"v":0.05552512366324791,"d":"6%"}},{"v":11733,"d":"€ 11,733.00"}]
[null,"Totale",{"$nulls":6},{"$f":"IFERROR(SUBTOTAL(109,TabellaPortfolio[Valore]), \"\")","v":{"v":211309.75,"d":"€ 211,309.75"}}]

{"sheet":"Distribuzione fondi","index":2,"n_rows":25,"n_cols":7,"rows_kept":25}
["Gestione degli investimenti","Gestione degli investimenti"]
[]
["Distribuzione fondi","Distribuzione fondi"]
[]
[]
["Nella tabella seguente, nelle righe da 19 a 25, è riportato un grafico a barre che confronta visivamente la percentuale effettiva degli investimenti per ogni categoria di obiettivi."]
{"$rows_empty":12}
["Esiste una tabella che calcola la percentuale effettiva degli investimenti per ogni categoria e la confronta con gli obiettivi.","Categoria","Obiettivo","Effettivo","Differenza","Soglia","Valore"]
["La tabella popola automaticamente le categorie di investimento dalla Tabella portfolio nelle celle B19:G25. Immettere una destinazione per ogni categoria di investimento nelle celle C20:C25 e passare a Dati > Aggiorna o premere CTRL+ALT+F5. ","Azioni USA",{"v":0.55,"d":"55%"},{"$f":"IFERROR(G20/SUBTOTAL(109,TabellaDistribuzioneFondi[Valore]),\"\")","v":{"v":0.5974736139719061,"d":"60%"}},{"$f":"D20 - C20","v":{"v":0.04747361397190608,"d":"4.7%"}},{"$f":"MIN(5%, $C20 * 25%)","v":{"v":0.05,"d":"5%"}},{"$f":"SUMIF(TabellaPortfolio[Categoria], B20, TabellaPortfolio[Valore])","v":{"v":126251.99999999999,"d":"€ 126,252.00"}}]
["Quando una categoria di fondi supera la Soglia, gli importi verranno evidenziati in giallo.","Azioni internazionali",{"v":0.2,"d":"20%"},{"$f":"IFERROR(G21/SUBTOTAL(109,TabellaDistribuzioneFondi[Valore]),\"\")","v":{"v":0.16633401913541615,"d":"17%"}},{"v":-0.03366598086458386,"d":"-3.4%"},{"v":0.05,"d":"5%"},{"$f":"SUMIF(TabellaPortfolio[Categoria], B21, TabellaPortfolio[Valore])","v":{"v":35148,"d":"€ 35,148.00"}}]
[null,"Obbligazioni",{"v":0.1,"d":"10%"},{"$f":"IFERROR(G22/SUBTOTAL(109,TabellaDistribuzioneFondi[Valore]),\"\")","v":{"v":0.06435102970875695,"d":"6%"}},{"v":-0.03564897029124306,"d":"-3.6%"},{"v":0.025,"d":"3%"},{"$f":"SUMIF(TabellaPortfolio[Categoria], B22, TabellaPortfolio[Valore])","v":{"v":13598.000000000002,"d":"€ 13,598.00"}}]
[null,"Contanti",{"v":0.05,"d":"5%"},{"$f":"IFERROR(G23/SUBTOTAL(109,TabellaDistribuzioneFondi[Valore]),\"\")","v":{"v":0.0473238930054103,"d":"5%"}},{"v":-0.0026761069945897,"d":"-0.3%"},{"v":0.0125,"d":"1%"},{"$f":"SUMIF(TabellaPortfolio[Categoria], B23, TabellaPortfolio[Valore])","v":{"v":10000,"d":"€ 10,000.00"}}]
[null,"Beni immobili",{"v":0.05,"d":"5%"},{"$f":"IFERROR(G24/SUBTOTAL(109,TabellaDistribuzioneFondi[Valore]),\"\")","v":{"v":0.06899232051526255,"d":"7%"}},{"v":0.018992320515262548,"d":"1.9%"},{"v":0.0125,"d":"1%"},{"$f":"SUMIF(TabellaPortfolio[Categoria], B24, TabellaPortfolio[Valore])","v":{"v":14578.75,"d":"€ 14,578.75"}}]
[null,"Merci",{"v":0.05,"d":"5%"},{"$f":"IFERROR(G25/SUBTOTAL(109,TabellaDistribuzioneFondi[Valore]),\"\")","v":{"v":0.05552512366324791,"d":"6%"}},{"v":0.005525123663247908,"d":"0.6%"},{"v":0.0125,"d":"1%"},{"$f":"SUMIF(TabellaPortfolio[Categoria], B25, TabellaPortfolio[Valore])","v":{"v":11733,"d":"€ 11,733.00"}}]